fUSD/lending_fUSD_20260610
["ID","MTS","AMOUNT","RATE_DAILY","PERIOD"]
[424723056,1781088678000,-1317.20859672,0.00034846,2]
[424723040,1781088678000,-1306.29079776,0.00034845,2]
[424723060,1781088678000,-25000.0,0.00034854,10]
[424723049,1781088678000,-2049.53605402,0.00034845,2]
[424723042,1781088678000,-1226.2878374,0.00034845,2]
[424723024,1781088678000,-150.0,0.00034815,7]
[424723038,1781088678000,-1834.69631595,0.00034845,2]
[424723061,1781088678000,-25000.0,0.00034854,10]
[424723023,1781088678000,-209.0,0.00034812,3]
[424723021,1781088678000,-72338.31472286,0.000348,2]
[424723022,1781088678000,-7000.0,0.000348,2]
[424723025,1781088678000,-1466.35,0.00034821,2]
[424723026,1781088678000,-216.78508448,0.00034823,7]
[424723029,1781088678000,-150.0,0.00034826,7]
[424723027,1781088678000,-662.46669759,0.00034823,7]
[424723028,1781088678000,-159.34890899,0.00034823,7]
[424723030,1781088678000,-182.0,0.00034827,3]
[424723031,1781088678000,-25000.0,0.00034837,10]
[424723032,1781088678000,-25000.0,0.00034837,10]
[424723033,1781088678000,-150.0,0.00034838,7]
[424723034,1781088678000,-1353.19159567,0.00034842,2]
[424723035,1781088678000,-160.0,0.00034843,3]
[424723036,1781088678000,-1247.0374908,0.00034845,2]
[424723037,1781088678000,-1647.48674126,0.00034845,2]
[424723041,1781088678000,-1222.36543345,0.00034845,2]
[424723057,1781088678000,-1245.82379241,0.00034846,2]
[424723069,1781088678000,-25000.0,0.00034863,10]
[424723059,1781088678000,-150.0,0.00034852,7]
[424723079,1781088678000,-256.001198,0.00034879,30]
[424723087,1781088678000,-150.0,0.00034893,7]
[424723092,1781088678000,-749.7,0.000349,120]
[424723093,1781088678000,-4000.0,0.000349,14]
[424723089,1781088678000,-216.78508448,0.00034894,7]
[424723086,1781088678000,-150.0,0.00034888,7]
[424723088,1781088678000,-532.16,0.00034893,120]
[424723091,1781088678000,-159.34890899,0.00034894,7]
[424723090,1781088678000,-662.46669759,0.00034894,7]
[424723085,1781088678000,-152.3288,0.00034887,2]
[424723094,1781088678000,-1500.0,0.000349,7]
[424723097,1781088678000,-1116.17995082,0.000349,2]
[424723098,1781088678000,-1860.56572691,0.000349,2]
[424723099,1781088678000,-184.0418703,0.000349,46]
[424723096,1781088678000,-279.76041309,0.000349,2]
[424723095,1781088678000,-420.36773841,0.000349,2]
[424723058,1781088678000,-1001.0,0.00034849,120]
[424723082,1781088678000,-896.77747134,0.00034879,2]
[424723078,1781088678000,-200.0,0.00034876,4]
[424723084,1781088678000,-201.0,0.0003488,30]
[424723077,1781088678000,-241.6875,0.00034873,2]
[424723062,1781088678000,-25000.0,0.00034854,10]
[424723064,1781088678000,-662.46669759,0.00034858,7]
[424723063,1781088678000,-216.78508448,0.00034858,7]
[424723066,1781088678000,-25000.0,0.00034863,10]
[424723065,1781088678000,-159.34890899,0.00034858,7]
[424723080,1781088678000,-500.0,0.00034879,30]
[424723068,1781088678000,-25000.0,0.00034863,10]
[424723071,1781088678000,-248.0,0.00034867,3]
[424723100,1781088678000,-2039.9431,0.00034908,2]
[424723067,1781088678000,-25000.0,0.00034863,10]
[424723072,1781088678000,-256.001198,0.00034869,30]
[424723070,1781088678000,-25000.0,0.00034863,10]
[424723075,1781088678000,-700.0,0.0003487,2]
[424723074,1781088678000,-5013.0,0.0003487,30]
[424723076,1781088678000,-400.0,0.0003487,2]
[424723081,1781088678000,-719.04747942,0.00034879,2]
[424723083,1781088678000,-151.0,0.00034879,2]
[424723073,1781088678000,-500.0,0.00034869,30]
[424723109,1781088679000,-800.0,0.00034908,13]
[424723101,1781088679000,-2359.7966,0.00034908,2]
[424723103,1781088679000,-800.0,0.00034908,13]
[424723102,1781088679000,-3812.2574,0.00034908,2]
[424723104,1781088679000,-800.0,0.00034908,13]
[424723106,1781088679000,-800.0,0.00034908,13]
[424723108,1781088679000,-800.0,0.00034908,13]
[424723107,1781088679000,-800.0,0.00034908,13]
[424723118,1781088679000,-60642.21185708,0.00034942,8]
[424723111,1781088679000,-150.0,0.00034924,7]
[424723112,1781088679000,-216.78508448,0.00034929,7]
[424723113,1781088679000,-662.46669759,0.00034929,7]
[424723110,1781088679000,-800.0,0.00034908,13]
[424723117,1781088679000,-10713.82,0.00034942,8]
[424723114,1781088679000,-159.34890899,0.00034929,7]
[424723116,1781088679000,-150.0,0.0003494,7]
[424723115,1781088679000,-1622.97,0.00034931,5]
[424723105,1781088679000,-800.0,0.00034908,13]
[424723120,1781088680000,-95.35744231,0.00027397,2]
[424723119,1781088680000,-284.95203121,9.935e-05,2]
[424723121,1781088680000,-735.49018223,0.00010591,2]
[424723137,1781088681000,-329.493967,0.00027397,2]
[424723139,1781088681000,-329.493967,0.00027397,2]
[424723136,1781088681000,-329.493967,0.00027397,2]
[424723135,1781088681000,-234.13652469,0.00027397,2]
[424723133,1781088681000,-151.0,0.00016438,2]
[424723131,1781088681000,-151.0,0.00016438,2]
[424723132,1781088681000,-151.0,0.00016438,2]
[424723129,1781088681000,-151.0,0.00016438,2]
[424723124,1781088681000,-1364.96,0.0001112,2]
[424723134,1781088681000,-151.0,0.00016438,2]
[424723128,1781088681000,-151.0,0.00016438,2]
[424723127,1781088681000,-157.57,0.00012329,2]
[424723126,1781088681000,-1364.96,0.0001165,2]
[424723125,1781088681000,-1364.96,0.00011385,2]
[424723122,1781088681000,-629.46981777,0.00010591,2]
[424723123,1781088681000,-1364.96,0.00010855,2]
[424723130,1781088681000,-151.0,0.00016438,2]
[424723138,1781088681000,-329.493967,0.00027397,2]
[424723143,1781088681000,-1650.0,0.00029395,10]
[424723141,1781088681000,-800.79634,0.000291,2]
[424723140,1781088681000,-329.493967,0.00027397,2]
[424723157,1781088681000,-215.92376884,0.00033,3]
[424723155,1781088681000,-299.0,0.00031212,30]
[424723158,1781088681000,-157.57,0.00034521,120]
[424723156,1781088681000,-299.0,0.00032212,30]
[424723151,1781088681000,-329.493961,0.00027397,2]
[424723153,1781088681000,-220.26083379,0.00030212,30]
[424723149,1781088681000,-171.61969194,0.0002058,2]
[424723159,1781088681000,-18998.49027853,0.00034942,8]
[424723152,1781088681000,-228.67495412,0.0003,7]
[424723147,1781088681000,-1811.15474366,0.00012432,2]
[424723146,1781088681000,-4263.84525634,0.00012432,2]
[424723150,1781088681000,-329.493967,0.00027397,2]
[424723154,1781088681000,-78.73916621,0.00030212,30]
[424723142,1781088681000,-299.0,0.00029212,30]
[424723145,1781088681000,-111.72504588,0.0003,7]
[424723144,1781088681000,-2000.0,0.0003,7]
[424723148,1781088681000,-273.641047,0.00016438,2]
[424723161,1781088729000,387.463447,0.00026849,120]
[424723162,1781088747000,196.2513,0.00026884,120]
[424723163,1781088748000,331.645186,0.00026884,120]
[424723164,1781088755000,165.34011,0.00026142,120]
[424723166,1781088947000,165.822593,0.00022757,120]
[424723167,1781088954000,206.0,0.0003,120]
[424723168,1781089024000,310.84412823,0.00030136,120]
[424723183,1781089386000,313.0,0.00029,120]
[424723184,1781089595000,-466.18230134,8.424e-05,2]
[424723205,1781089832000,-240.57367421,8.433e-05,2]
[424723202,1781089832000,-250.0,8.425e-05,2]
[424723201,1781089832000,-500.0,8.424e-05,2]
[424723204,1781089832000,-259.42632579,8.433e-05,2]
[424723203,1781089832000,-500.0,8.433e-05,2]
[424723207,1781089832000,-250.0,8.434e-05,2]
[424723211,1781089832000,-150.0,8.508e-05,2]
[424723209,1781089832000,-826.90694576,8.445e-05,2]
[424723208,1781089832000,-160.0,8.44e-05,2]
[424723210,1781089832000,-215.92376884,8.487e-05,2]
[424723212,1781089832000,-300.0,8.645e-05,2]
[424723214,1781089832000,-613.08044603,8.646e-05,2]
[424723213,1781089832000,-541.42655201,8.646e-05,2]
[424723206,1781089832000,-500.0,8.433e-05,2]
[424723231,1781089833000,-343.16,9.262e-05,2]
[424723229,1781089833000,-2000.0,9.262e-05,2]
[424723230,1781089833000,-163.09,9.262e-05,2]
[424723233,1781089833000,-250.0,9.267e-05,2]
[424723238,1781089833000,-2420.59697747,9.267e-05,2]
[424723227,1781089833000,-360.5614776,9.04e-05,2]
[424723224,1781089833000,-264.33827399,8.971e-05,2]
[424723226,1781089833000,-1279.71701362,8.972e-05,2]
[424723228,1781089833000,-826.90694575,9.043e-05,2]
[424723223,1781089833000,-160.02,8.677e-05,2]
[424723225,1781089833000,-1247.961309,8.971e-05,2]
[424723222,1781089833000,-628.7,8.657e-05,2]
[424723221,1781089833000,-32.26107542,8.657e-05,2]
[424723219,1781089833000,-1330.76892458,8.657e-05,2]
[424723217,1781089833000,-343.14613815,8.646e-05,2]
[424723218,1781089833000,-1457.15762073,8.646e-05,2]
[424723216,1781089833000,-673.90711308,8.646e-05,2]
[424723215,1781089833000,-599.30213,8.646e-05,2]
[424723239,1781089833000,-2777.98,9.33e-05,2]
[424723236,1781089833000,-500.0,9.267e-05,2]
[424723241,1781089833000,-160.02,9.393e-05,2]
[424723273,1781089833000,-279.04498776,0.000109,2]
[424723254,1781089833000,-500.0,9.77e-05,2]
[424723282,1781089833000,-1254.41808677,0.00011099,2]
[424723283,1781089833000,-14249.69541331,0.00011099,2]
[424723277,1781089833000,-337.57,0.00010989,2]
[424723244,1781089833000,-166.68,9.54e-05,2]
[424723275,1781089833000,-150.0,0.00010959,2]
[424723279,1781089833000,-300.0,0.00011098,2]
[424723278,1781089833000,-666.0,0.00011098,2]
[424723281,1781089833000,-1321.41758795,0.00011099,2]
[424723274,1781089833000,-150.0,0.00010959,2]
[424723280,1781089833000,-21812.35372149,0.00011099,2]
[424723276,1781089833000,-742.7,0.00010989,2]
[424723252,1781089833000,-826.90694575,9.64e-05,2]
[424723269,1781089833000,-255.0,0.00010536,2]
[424723267,1781089833000,-343.16,0.0001042,2]
[424723262,1781089833000,-160.02,0.00010109,2]
[424723265,1781089833000,-2000.0,0.0001042,2]
[424723260,1781089833000,-308.525,0.0001,2]
[424723257,1781089833000,-2000.0,9.773e-05,2]
[424723250,1781089833000,-1052.73964308,9.578e-05,2]
[424723247,1781089833000,-150.0,9.578e-05,2]
[424723271,1781089833000,-163.09,0.00010806,2]
[424723293,1781089838000,-323.67,0.0001122,2]
[424723296,1781089838000,-2000.0,0.00011578,2]
[424723297,1781089838000,-343.16,0.00011578,2]
[424723295,1781089838000,-21812.35372143,0.00011413,2]
[424723292,1781089838000,-457.7178761,0.00011099,2]
[424723294,1781089838000,-457.7178761,0.00011327,2]
[424723290,1781089838000,-457.71787618,0.00011099,2]
[424723287,1781089838000,-780.86,0.00011099,2]
[424723299,1781089838000,-161.0,0.00011922,2]
[424723291,1781089838000,-457.7178761,0.00011099,2]
[424723289,1781089838000,-21812.35372143,0.00011099,2]
[424723288,1781089838000,-3705.9626334,0.00011099,2]
[424723286,1781089838000,-500.0,0.00011099,2]
[424723300,1781089838000,-457.7178761,0.00011922,2]
[424723298,1781089838000,-433.0,0.0001159,2]
[424723317,1781089838000,-1363.03,0.0001212,2]
[424723303,1781089838000,-151.0,0.00012,2]
[424723302,1781089838000,-151.0,0.00012,2]
[424723316,1781089838000,-3439.06,0.00012087,2]
[424723312,1781089838000,-7849.08,0.00012087,2]
[424723315,1781089838000,-150.99,0.00012087,2]
[424723313,1781089838000,-9999.99,0.00012087,2]
[424723309,1781089838000,-9999.99,0.00012087,2]
[424723311,1781089838000,-24999.99,0.00012087,2]
[424723314,1781089838000,-299.99,0.00012087,2]
[424723304,1781089838000,-151.0,0.00012,2]
[424723306,1781089838000,-148222.59,0.00012087,2]
[424723307,1781089838000,-4999.99,0.00012087,2]
[424723305,1781089838000,-151.0,0.00012,2]
[424723301,1781089838000,-21812.35372143,0.00011994,2]
[424723308,1781089838000,-9999.99,0.00012087,2]
[424723310,1781089838000,-1218.95,0.00012087,2]
[424723396,1781089839000,-500.0,0.00013698,2]
[424723388,1781089839000,-500.0,0.00013698,2]
[424723390,1781089839000,-500.0,0.00013698,2]
[424723398,1781089839000,-500.0,0.00013698,2]
[424723383,1781089839000,-240.98630425,0.00013698,2]
[424723382,1781089839000,-590.47777373,0.00013698,2]
[424723386,1781089839000,-500.0,0.00013698,2]
[424723377,1781089839000,-500.0,0.00013698,2]
[424723392,1781089839000,-221.05414791,0.00013698,2]
[424723380,1781089839000,-161.54562137,0.00013698,2]
[424723394,1781089839000,-630.39633207,0.00013698,2]
[424723420,1781089839000,-500.0,0.00013698,2]
[424723402,1781089839000,-500.0,0.00013698,2]
[424723404,1781089839000,-500.0,0.00013698,2]
[424723406,1781089839000,-500.0,0.00013698,2]
[424723408,1781089839000,-500.0,0.00013698,2]
[424723410,1781089839000,-500.0,0.00013698,2]
[424723375,1781089839000,-500.0,0.00013698,2]
[424723414,1781089839000,-500.0,0.00013698,2]
[424723418,1781089839000,-500.0,0.00013698,2]
[424723416,1781089839000,-512.99574311,0.00013698,2]
[424723424,1781089839000,-500.0,0.00013698,2]
[424723422,1781089839000,-368.75668931,0.00013698,2]
[424723400,1781089839000,-500.0,0.00013698,2]
[424723367,1781089839000,-500.0,0.00013698,2]
[424723356,1781089839000,-500.0,0.00013698,2]
[424723369,1781089839000,-500.0,0.00013698,2]
[424723323,1781089839000,-457.7178761,0.00012518,2]
[424723327,1781089839000,-2000.0,0.00012736,2]
[424723428,1781089839000,-500.0,0.00013698,2]
[424723329,1781089839000,-343.16,0.00012736,2]
[424723319,1781089839000,-219.12,0.00012329,2]
[424723321,1781089839000,-163.09,0.0001235,2]
[424723333,1781089839000,-300.0,0.00012892,2]
[424723339,1781089839000,-2000.0,0.00012892,2]
[424723335,1781089839000,-300.0,0.00012892,2]
[424723337,1781089839000,-250.0,0.00012892,2]
[424723331,1781089839000,-736.0,0.00012749,2]
[424723360,1781089839000,-500.0,0.00013698,2]
[424723350,1781089839000,-21812.35372143,0.00013157,2]
[424723352,1781089839000,-279.0449877,0.00013163,2]
[424723344,1781089839000,-444.5910298,0.00013,5]
[424723348,1781089839000,-457.7178761,0.00013113,2]
[424723346,1781089839000,-5425.48779302,0.0001305,2]
[424723354,1781089839000,-500.0,0.00013698,2]
[424723365,1781089839000,-500.0,0.00013698,2]
[424723353,1781089839000,-507.15165324,0.00013698,2]
[424723358,1781089839000,-500.0,0.00013698,2]
[424723363,1781089839000,-500.0,0.00013698,2]
[424723373,1781089839000,-500.0,0.00013698,2]
[424723371,1781089839000,-500.0,0.00013698,2]
[424723342,1781089839000,-5688.34629317,0.00013,2]
[424723430,1781089839000,-500.0,0.00013698,2]
[424723325,1781089839000,-21812.35372143,0.00012576,2]
[424723434,1781089839000,-500.0,0.00013698,2]
[424723465,1781089839000,-167.63,0.00014423,2]
[424723464,1781089839000,-250.0,0.00014423,2]
[424723466,1781089839000,-250.0,0.00014423,2]
[424723468,1781089839000,-167.528,0.00014423,2]
[424723467,1781089839000,-195.316,0.00014423,2]
[424723471,1781089839000,-247.654,0.00014423,2]
[424723473,1781089839000,-1358.0,0.00014423,2]
[424723469,1781089839000,-250.0,0.00014423,2]
[424723470,1781089839000,-189.0,0.00014423,2]
[424723472,1781089839000,-165.425,0.00014423,2]
[424723474,1781089839000,-382.0,0.00014423,2]
[424723463,1781089839000,-262.103,0.00014423,2]
[424723476,1781089839000,-1227.0,0.00014423,2]
[424723478,1781089839000,-500.0,0.00014567,2]
[424723481,1781089839000,-422.0,0.00014748,2]
[424723480,1781089839000,-388.371832,0.000147,2]
[424723479,1781089839000,-328.957318,0.00014647,2]
[424723482,1781089839000,-434.0,0.00014768,2]
[424723483,1781089839000,-868.0,0.000148,2]
[424723484,1781089839000,-375.0,0.00014834,2]
[424723485,1781089839000,-375.0,0.00014853,2]
[424723487,1781089839000,-375.0,0.00014865,2]
[424723486,1781089839000,-422.0,0.00014858,2]
[424723432,1781089839000,-500.0,0.00013698,2]
[424723477,1781089839000,-2000.0,0.00014567,2]
[424723461,1781089839000,-232.866,0.00014423,2]
[424723475,1781089839000,-1274.0,0.00014423,2]
[424723459,1781089839000,-250.0,0.00014423,2]
[424723462,1781089839000,-247.969,0.00014423,2]
[424723436,1781089839000,-500.0,0.00013698,2]
[424723442,1781089839000,-457.7178761,0.00013709,2]
[424723437,1781089839000,-500.0,0.00013698,2]
[424723440,1781089839000,-469.09,0.00013699,2]
[424723438,1781089839000,-500.0,0.00013698,2]
[424723439,1781089839000,-390.88,0.00013698,2]
[424723441,1781089839000,-528.37,0.00013699,2]
[424723444,1781089839000,-1500.0,0.0001378,2]
[424723443,1781089839000,-21812.35372143,0.00013738,2]
[424723448,1781089839000,-1500.0,0.00014,2]
[424723446,1781089839000,-343.16,0.00013894,2]
[424723449,1781089839000,-250.0,0.00014,2]
[424723427,1781089839000,-500.0,0.00013698,2]
[424723456,1781089839000,-10481.39136115,0.0001439,2]
[424723445,1781089839000,-2000.0,0.00013894,2]
[424723450,1781089839000,-1252.0,0.00014022,2]
[424723451,1781089839000,-6075.0,0.00014086,2]
[424723453,1781089839000,-457.7178761,0.00014304,2]
[424723452,1781089839000,-933.0,0.00014086,2]
[424723454,1781089839000,-21812.35372143,0.00014319,2]
[424723455,1781089839000,-1555.5,0.00014328,2]
[424723447,1781089839000,-163.09,0.00013894,2]
[424723457,1781089839000,-1240.58824275,0.000144,2]
[424723458,1781089839000,-278.0,0.00014423,2]
[424723460,1781089839000,-220.0,0.00014423,2]
[424723525,1781089840000,-500.0,0.00014999,2]
[424723527,1781089840000,-500.0,0.00014999,2]
[424723518,1781089840000,-500.0,0.00014999,2]
[424723521,1781089840000,-500.0,0.00014999,2]
[424723528,1781089840000,-500.0,0.00014999,2]
[424723523,1781089840000,-500.0,0.00014999,2]
[424723517,1781089840000,-500.0,0.00014999,2]
[424723509,1781089840000,-500.0,0.00014999,2]
[424723510,1781089840000,-500.0,0.00014999,2]
[424723524,1781089840000,-500.0,0.00014999,2]
[424723519,1781089840000,-500.0,0.00014999,2]
[424723522,1781089840000,-500.0,0.00014999,2]
[424723530,1781089840000,-500.0,0.00014999,2]
[424723534,1781089840000,-500.0,0.00014999,2]
[424723537,1781089840000,-500.0,0.00014999,2]
[424723536,1781089840000,-500.0,0.00014999,2]
[424723535,1781089840000,-500.0,0.00014999,2]
[424723540,1781089840000,-500.0,0.00014999,2]
[424723533,1781089840000,-500.0,0.00014999,2]
[424723531,1781089840000,-161.65077584,0.00014999,2]
[424723542,1781089840000,-500.0,0.00014999,2]
[424723541,1781089840000,-500.0,0.00014999,2]
[424723544,1781089840000,-500.0,0.00014999,2]
[424723552,1781089840000,-500.0,0.00014999,2]
[424723543,1781089840000,-500.0,0.00014999,2]
[424723532,1781089840000,-232.91439081,0.00014999,2]
[424723511,1781089840000,-500.0,0.00014999,2]
[424723488,1781089840000,-434.0,0.00014868,2]
[424723515,1781089840000,-595.29668588,0.00014999,2]
[424723551,1781089840000,-500.0,0.00014999,2]
[424723489,1781089840000,-1613.0535,0.00014876,2]
[424723492,1781089840000,-155.16755486,0.000149,2]
[424723490,1781089840000,-375.0,0.0001488,2]
[424723494,1781089840000,-457.7178761,0.000149,2]
[424723493,1781089840000,-21812.35372143,0.000149,2]
[424723491,1781089840000,-375.0,0.00014884,2]
[424723495,1781089840000,-375.0,0.00014928,2]
[424723496,1781089840000,-375.0,0.0001494,2]
[424723497,1781089840000,-375.0,0.00014944,2]
[424723499,1781089840000,-319.84226118,0.00014952,2]
[424723503,1781089840000,-500.0,0.00014999,2]
[424723500,1781089840000,-375.0,0.00014975,2]
[424723502,1781089840000,-375.0,0.00014991,2]
[424723498,1781089840000,-375.0,0.0001495,2]
[424723501,1781089840000,-168.35478083,0.0001499,2]
[424723513,1781089840000,-500.0,0.00014999,2]
[424723526,1781089840000,-500.0,0.00014999,2]
[424723507,1781089840000,-500.0,0.00014999,2]
[424723508,1781089840000,-500.0,0.00014999,2]
[424723505,1781089840000,-500.0,0.00014999,2]
[424723504,1781089840000,-500.0,0.00014999,2]
[424723520,1781089840000,-500.0,0.00014999,2]
[424723529,1781089840000,-593.3265258,0.00014999,2]
[424723506,1781089840000,-500.0,0.00014999,2]
[424723516,1781089840000,-500.0,0.00014999,2]
[424723554,1781089840000,-500.0,0.00014999,2]
[424723553,1781089840000,-263.58200295,0.00014999,2]
[424723546,1781089840000,-500.0,0.00014999,2]
[424723581,1781089840000,-348.37592208,0.00014999,2]
[424723579,1781089840000,-500.0,0.00014999,2]
[424723583,1781089840000,-500.0,0.00014999,2]
[424723585,1781089840000,-500.0,0.00014999,2]
[424723582,1781089840000,-500.0,0.00014999,2]
[424723587,1781089840000,-1263.1969102,0.00014999,2]
[424723584,1781089840000,-1263.1969102,0.00014999,2]
[424723586,1781089840000,-500.0,0.00014999,2]
[424723588,1781089840000,-215.33312435,0.00014999,2]
[424723589,1781089840000,-500.0,0.00014999,2]
[424723591,1781089840000,-1263.1969102,0.00014999,2]
[424723596,1781089840000,-1263.1969102,0.00014999,2]
[424723590,1781089840000,-1263.1969102,0.00014999,2]
[424723601,1781089840000,-1263.1969102,0.00014999,2]
[424723595,1781089840000,-500.0,0.00014999,2]
[424723597,1781089840000,-1263.1969102,0.00014999,2]
[424723592,1781089840000,-500.0,0.00014999,2]
[424723602,1781089840000,-1263.1969102,0.00014999,2]
[424723594,1781089840000,-1263.1969102,0.00014999,2]
[424723598,1781089840000,-1263.1969102,0.00014999,2]
[424723593,1781089840000,-1263.1969102,0.00014999,2]
[424723600,1781089840000,-1263.1969102,0.00014999,2]
[424723603,1781089840000,-1263.1969102,0.00014999,2]
[424723605,1781089840000,-1263.1969102,0.00014999,2]
[424723604,1781089840000,-1263.1969102,0.00014999,2]
[424723545,1781089840000,-500.0,0.00014999,2]
[424723599,1781089840000,-1263.1969102,0.00014999,2]
[424723580,1781089840000,-1263.1969102,0.00014999,2]
[424723606,1781089840000,-1263.1969102,0.00014999,2]
[424723573,1781089840000,-500.0,0.00014999,2]
[424723570,1781089840000,-500.0,0.00014999,2]
[424723549,1781089840000,-500.0,0.00014999,2]
[424723547,1781089840000,-171.3061609,0.00014999,2]
[424723548,1781089840000,-500.0,0.00014999,2]
[424723550,1781089840000,-500.0,0.00014999,2]
[424723556,1781089840000,-500.0,0.00014999,2]
[424723555,1781089840000,-500.0,0.00014999,2]
[424723557,1781089840000,-500.0,0.00014999,2]
[424723563,1781089840000,-246.79614873,0.00014999,2]
[424723560,1781089840000,-600.0,0.00014999,2]
[424723561,1781089840000,-150.0,0.00014999,2]
[424723562,1781089840000,-250.0,0.00014999,2]
[424723559,1781089840000,-500.0,0.00014999,2]
[424723558,1781089840000,-500.0,0.00014999,2]
[424723564,1781089840000,-256.43682364,0.00014999,2]
[424723565,1781089840000,-500.0,0.00014999,2]
[424723574,1781089840000,-1263.1969102,0.00014999,2]
[424723571,1781089840000,-1263.1969102,0.00014999,2]
[424723568,1781089840000,-500.0,0.00014999,2]
[424723566,1781089840000,-1263.1969102,0.00014999,2]
[424723569,1781089840000,-500.0,0.00014999,2]
[424723577,1781089840000,-573.59527936,0.00014999,2]
[424723572,1781089840000,-500.0,0.00014999,2]
[424723578,1781089840000,-1263.1969102,0.00014999,2]
[424723575,1781089840000,-500.0,0.00014999,2]
[424723567,1781089840000,-500.0,0.00014999,2]
[424723576,1781089840000,-500.0,0.00014999,2]
[424723640,1781089841000,-702.55853752,0.00014999,2]
[424723645,1781089841000,-2074189.52022601,0.00015,2]
[424723642,1781089841000,-11370.73564642,0.00015,2]
[424723644,1781089841000,-8101.85734556,0.00015,2]
[424723637,1781089841000,-300.0,0.00014999,2]
[424723641,1781089841000,-4595890.28147623,0.00015,2]
[424723651,1781089841000,-214.3,0.00016438,2]
[424723638,1781089841000,-300.0,0.00014999,2]
[424723636,1781089841000,-1263.1969102,0.00014999,2]
[424723646,1781089841000,-1672.7364795,0.00015424,2]
[424723643,1781089841000,-2081.4127102,0.00015,2]
[424723647,1781089841000,-1465.0,0.0001543,2]
[424723664,1781089841000,-1934.38338736,0.00017616,2]
[424723649,1781089841000,-1734.62772924,0.00015972,2]
[424723653,1781089841000,-1798.80895522,0.0001652,2]
[424723652,1781089841000,-205.37186205,0.00016438,2]
[424723654,1781089841000,-279.0449877,0.00016786,2]
[424723656,1781089841000,-223.0,0.00016903,2]
[424723659,1781089841000,-933.0,0.00017086,2]
[424723660,1781089841000,-1358.0,0.00017423,2]
[424723658,1781089841000,-6075.0,0.00017086,2]
[424723661,1781089841000,-382.0,0.00017423,2]
[424723657,1781089841000,-1865.36488656,0.00017068,2]
[424723662,1781089841000,-1274.0,0.00017423,2]
[424723639,1781089841000,-300.0,0.00014999,2]
[424723650,1781089841000,-300.0,0.00016,2]
[424723634,1781089841000,-1263.1969102,0.00014999,2]
[424723621,1781089841000,-1263.1969102,0.00014999,2]
[424723635,1781089841000,-1263.1969102,0.00014999,2]
[424723674,1781089841000,-300.0,0.00018711,2]
[424723614,1781089841000,-1263.1969102,0.00014999,2]
[424723607,1781089841000,-1263.1969102,0.00014999,2]
[424723615,1781089841000,-1263.1969102,0.00014999,2]
[424723608,1781089841000,-1263.1969102,0.00014999,2]
[424723610,1781089841000,-1263.1969102,0.00014999,2]
[424723611,1781089841000,-1263.1969102,0.00014999,2]
[424723609,1781089841000,-1263.1969102,0.00014999,2]
[424723612,1781089841000,-1263.1969102,0.00014999,2]
[424723613,1781089841000,-1263.1969102,0.00014999,2]
[424723617,1781089841000,-1263.1969102,0.00014999,2]
[424723616,1781089841000,-1263.1969102,0.00014999,2]
[424723631,1781089841000,-1263.1969102,0.00014999,2]
[424723627,1781089841000,-1263.1969102,0.00014999,2]
[424723619,1781089841000,-1263.1969102,0.00014999,2]
[424723624,1781089841000,-1263.1969102,0.00014999,2]
[424723623,1781089841000,-1263.1969102,0.00014999,2]
[424723620,1781089841000,-1263.1969102,0.00014999,2]
[424723618,1781089841000,-1263.1969102,0.00014999,2]
[424723626,1781089841000,-1263.1969102,0.00014999,2]
[424723625,1781089841000,-500.0,0.00014999,2]
[424723628,1781089841000,-1263.1969102,0.00014999,2]